fUSD/lending_fUSD_20260408
["ID","MTS","AMOUNT","RATE_DAILY","PERIOD"]
[420037241,1775627456947,-191.16455249,0.00017749,2]
[420037242,1775627456957,-2319.83544751,0.0002702,2]
[420037243,1775627456971,-1844.09,0.0002702,2]
[420037244,1775627457014,-240820.20221928,0.0002702,2]
[420037245,1775627457024,-151.0,0.0002702,2]
[420037246,1775627457034,-151.0,0.0002702,2]
[420037247,1775627457043,-151.0,0.0002702,2]
[420037248,1775627457052,-151.0,0.0002702,2]
[420037249,1775627457062,-163.226364,0.0002702,2]
[420037250,1775627457071,-151.0,0.0002702,2]
[420037251,1775627457080,-151.0,0.0002702,2]
[420037252,1775627457090,-151.0,0.0002702,2]
[420037253,1775627457100,-151.0,0.0002702,2]
[420037254,1775627457110,-151.0,0.0002702,2]
[420037255,1775627457119,-151.0,0.0002702,2]
[420037256,1775627457129,-151.0,0.0002702,2]
[420037257,1775627457138,-151.0,0.0002702,2]
[420037258,1775627457148,-284.485092,0.0002702,2]
[420037259,1775627457157,-151.575895,0.0002702,2]
[420037260,1775627457166,-151.0,0.0002702,2]
[420037261,1775627457176,-151.0,0.0002702,2]
[420037262,1775627457185,-151.0,0.0002702,2]
[420037263,1775627457195,-151.0,0.0002702,2]
[420037264,1775627457205,-153.642442,0.0002702,2]
[420037265,1775627457215,-151.0,0.0002702,2]
[420037266,1775627457225,-151.0,0.0002702,2]
[420037267,1775627457235,-151.000005,0.0002702,2]
[420037268,1775627457244,-151.0,0.0002702,2]
[420037269,1775627457254,-151.0,0.0002702,2]
[420037270,1775627457263,-153.263153,0.0002702,2]
[420037271,1775627457272,-151.0,0.0002702,2]
[420037272,1775627457282,-218.181893,0.0002702,2]
[420037273,1775627457292,-151.0,0.0002702,2]
[420037274,1775627457302,-240.006064,0.0002702,2]
[420037275,1775627457312,-151.0,0.0002702,2]
[420037276,1775627457322,-164.343255,0.0002702,2]
[420037277,1775627457332,-151.0,0.0002702,2]
[420037278,1775627457343,-151.0,0.0002702,2]
[420037279,1775627457352,-151.0,0.0002702,2]
[420037280,1775627457362,-151.0,0.0002702,2]
[420037281,1775627457371,-247.697727,0.0002702,2]
[420037282,1775627457381,-151.0,0.0002702,2]
[420037283,1775627457390,-158.910746,0.0002702,2]
[420037284,1775627457399,-151.0,0.0002702,2]
[420037285,1775627457410,-209.655793,0.0002702,2]
[420037286,1775627457419,-151.0,0.0002702,2]
[420037287,1775627457429,-213.10577,0.0002702,2]
[420037288,1775627457439,-151.0,0.0002702,2]
[420037289,1775627457448,-155.175187,0.0002702,2]
[420037290,1775627457458,-151.0,0.0002702,2]
[420037291,1775627457468,-151.0,0.0002702,2]
[420037292,1775627457478,-151.0,0.0002702,2]
[420037293,1775627457489,-151.0,0.0002702,2]
[420037294,1775627457498,-151.0,0.0002702,2]
[420037295,1775627457508,-151.0,0.0002702,2]
[420037296,1775627457517,-151.0,0.0002702,2]
[420037297,1775627457527,-151.0,0.0002702,2]
[420037298,1775627457537,-151.0,0.0002702,2]
[420037299,1775627457546,-151.0,0.0002702,2]
[420037300,1775627457555,-151.0,0.0002702,2]
[420037301,1775627457565,-151.0,0.0002702,2]
[420037302,1775627457574,-151.0,0.0002702,2]
[420037303,1775627457583,-151.0,0.0002702,2]
[420037304,1775627457593,-242.843831,0.0002702,2]
[420037305,1775627457602,-151.0,0.0002702,2]
[420037306,1775627457612,-151.0,0.0002702,2]
[420037307,1775627457622,-151.0,0.0002702,2]
[420037308,1775627457631,-151.0,0.0002702,2]
[420037309,1775627457641,-151.0,0.0002702,2]
[420037310,1775627457650,-194.376713,0.0002702,2]
[420037311,1775627457660,-151.0,0.0002702,2]
[420037312,1775627457670,-151.0,0.0002702,2]
[420037313,1775627457680,-151.0,0.0002702,2]
[420037314,1775627457689,-151.0,0.0002702,2]
[420037315,1775627457699,-151.0,0.0002702,2]
[420037316,1775627457708,-151.0,0.0002702,2]
[420037317,1775627457718,-155.753542,0.0002702,2]
[420037318,1775627457728,-151.0,0.0002702,2]
[420037319,1775627457738,-151.0,0.0002702,2]
[420037320,1775627457748,-2000.0,0.000271,2]
[420037321,1775627457758,-152.40359973,0.00027126,2]
[420037322,1775627457768,-150.0,0.00027185,2]
[420037323,1775627457778,-350.0,0.00027187,2]
[420037324,1775627457787,-627.0712,0.000272,2]
[420037325,1775627457796,-2000.0,0.0002723,2]
[420037326,1775627457805,-2000.0,0.0002723,2]
[420037327,1775627457815,-2000.0,0.0002723,2]
[420037328,1775627457824,-500.0,0.0002723,3]
[420037329,1775627457835,-500.0,0.0002723,3]
[420037330,1775627457844,-200.0,0.0002723,2]
[420037331,1775627457855,-825.0,0.00027232,60]
[420037332,1775627457865,-2408.88,0.00027272,7]
[420037333,1775627457875,-200.0,0.00027279,2]
[420037334,1775627457885,-1000.0,0.0002731,2]
[420037335,1775627457894,-162.4734,0.0002736,2]
[420037336,1775627457903,-162.4734,0.0002737,2]
[420037337,1775627457913,-162.4734,0.0002738,2]
[420037338,1775627457922,-151.0,0.00027394,7]
[420037339,1775627457933,-916.91,0.00027397,120]
[420037340,1775627457942,-1000.0,0.00027397,120]
[420037341,1775627457952,-1000.0,0.00027397,120]
[420037342,1775627457961,-1000.0,0.00027397,120]
[420037343,1775627457971,-1000.0,0.00027397,120]
[420037344,1775627457980,-1000.0,0.00027397,120]
[420037345,1775627457990,-1000.0,0.00027397,120]
[420037346,1775627458000,-1000.0,0.00027397,120]
[420037347,1775627458010,-1000.0,0.00027397,120]
[420037348,1775627458021,-1000.0,0.00027397,120]
[420037349,1775627458031,-1000.0,0.00027397,120]
[420037350,1775627458041,-1000.0,0.00027397,120]
[420037351,1775627458051,-1000.0,0.00027397,120]
[420037352,1775627458061,-1000.0,0.00027397,120]
[420037353,1775627458072,-1000.0,0.00027397,120]
[420037354,1775627458082,-1000.0,0.00027397,120]
[420037355,1775627458092,-1000.0,0.00027397,120]
[420037356,1775627458102,-1000.0,0.00027397,120]
[420037357,1775627458112,-1000.0,0.00027397,120]
[420037358,1775627458123,-1000.0,0.00027397,120]
[420037359,1775627458133,-1000.0,0.00027397,120]
[420037360,1775627458143,-1000.0,0.00027397,120]
[420037361,1775627458154,-1000.0,0.00027397,120]
[420037362,1775627458164,-1000.0,0.00027397,120]
[420037363,1775627458175,-1000.0,0.00027397,120]
[420037364,1775627458185,-1000.0,0.00027397,120]
[420037365,1775627458195,-1000.0,0.00027397,120]
[420037366,1775627458206,-1000.0,0.00027397,4]
[420037367,1775627458217,-1000.0,0.00027397,4]
[420037368,1775627458227,-1000.0,0.00027397,4]
[420037369,1775627458238,-1000.0,0.00027397,4]
[420037370,1775627458249,-1000.0,0.00027397,4]
[420037371,1775627458259,-1000.0,0.00027397,4]
[420037372,1775627458270,-1000.0,0.00027397,4]
[420037373,1775627458279,-1000.0,0.00027397,4]
[420037374,1775627458289,-500.0,0.00027397,2]
[420037375,1775627458298,-383.03666175,0.00027397,7]
[420037376,1775627458308,-1000.0,0.00027397,4]
[420037377,1775627458317,-1000.0,0.00027397,4]
[420037378,1775627458326,-1069.72946307,0.00027397,4]
[420037379,1775627458336,-1000.0,0.00027397,20]
[420037380,1775627458345,-624.50920028,0.00027397,2]
[420037381,1775627458355,-528.52,0.00027397,2]
[420037382,1775627458364,-13803.3,0.00027397,10]
[420037383,1775627458373,-11502.75,0.00027397,10]
[420037384,1775627458383,-9585.62,0.00027397,10]
[420037385,1775627458392,-500.0,0.00027397,5]
[420037386,1775627458401,-5361.57423727,0.000274,2]
[420037387,1775627458410,-8350.49652639,0.000274,2]
[420037388,1775627458420,-222.98583208,0.000274,2]
[420037389,1775627458430,-212.78988451,0.000274,2]
[420037390,1775627458439,-1000.0,0.000274,90]
[420037391,1775627458448,-1000.0,0.000274,90]
[420037392,1775627458457,-1000.0,0.000274,90]
[420037393,1775627458467,-1000.0,0.000274,90]
[420037394,1775627458475,-1000.0,0.000274,90]
[420037395,1775627458485,-1000.0,0.000274,90]
[420037396,1775627458495,-1000.0,0.000274,90]
[420037397,1775627458504,-1000.0,0.000274,90]
[420037398,1775627458513,-1000.0,0.000274,90]
[420037399,1775627458523,-1000.0,0.000274,90]
[420037400,1775627458533,-1000.0,0.000274,90]
[420037401,1775627458542,-1000.0,0.000274,90]
[420037402,1775627458552,-1000.0,0.000274,90]
[420037403,1775627458562,-1000.0,0.000274,90]
[420037404,1775627458572,-958.665,0.000274,90]
[420037405,1775627458581,-1500.0,0.000274,120]
[420037406,1775627458591,-1500.0,0.000274,120]
[420037407,1775627458601,-1500.0,0.000274,120]
[420037408,1775627458612,-1500.0,0.000274,120]
[420037409,1775627458622,-1500.0,0.000274,120]
[420037410,1775627458632,-1500.0,0.000274,120]
[420037411,1775627458643,-1500.0,0.000274,120]
[420037412,1775627458653,-1500.0,0.000274,120]
[420037413,1775627458664,-1500.0,0.000274,120]
[420037414,1775627458675,-1500.0,0.000274,120]
[420037415,1775627458684,-1500.0,0.000274,120]
[420037416,1775627458696,-1500.0,0.000274,120]
[420037417,1775627458706,-1500.0,0.000274,120]
[420037418,1775627458716,-1500.0,0.000274,120]
[420037419,1775627458727,-1500.0,0.000274,120]
[420037420,1775627458737,-1500.0,0.000274,120]
[420037421,1775627458748,-1500.0,0.000274,120]
[420037422,1775627458758,-1500.0,0.000274,120]
[420037423,1775627458769,-1500.0,0.000274,120]
[420037424,1775627458779,-1500.0,0.000274,120]
[420037425,1775627458790,-1000.0,0.00027408,120]
[420037426,1775627458800,-152.0,0.0002745,9]
[420037427,1775627458810,-153.8213918,0.0002745,5]
[420037428,1775627458820,-57652.50632796,0.0002749,10]
[420037429,1775627458830,-288.07095047,0.00027497,7]
[420037430,1775627458840,-151.0,0.00027497,7]
[420037431,1775627458850,-1000.0,0.00027497,120]
[420037432,1775627458861,-351.54269781,0.00027499,7]
[420037433,1775627458871,-292.3100366,0.000275,7]
[420037434,1775627458882,-3369112.04728265,0.000275,2]
[420037435,1775627459381,-570.04409573,0.00020749,2]
[420037436,1775627459422,-507.0,0.000131,2]
[420037437,1775627459433,-5451.95590427,0.00020749,2]
[420037438,1775627459444,-1500.0,0.000274,120]
[420037439,1775627459454,-1500.0,0.000274,120]
[420037440,1775627459465,-1500.0,0.000274,120]
[420037441,1775627459475,-341.04409573,0.000275,2]
[420037442,1775627459488,-1434159.99999994,0.000275,2]
[420037443,1775627459527,-151.0,0.00010801,2]
[420037444,1775627459537,-507.0,0.00014129,2]
[420037445,1775627459546,-1500.0,0.000274,120]
[420037446,1775627459557,-17108.85508771,0.000275,2]
[420037447,1775627461454,-507.0,0.00015158,3]
[420037448,1775627461463,-2000.0,0.00016,2]
[420037449,1775627461474,-507.0,0.00016188,4]
[420037450,1775627461484,-507.0,0.00017217,5]
[420037451,1775627461494,-507.0,0.00018246,6]
[420037452,1775627461504,-507.0,0.00019275,7]
[420037453,1775627461513,-507.0,0.00020305,8]
[420037454,1775627461523,-507.0,0.00021334,9]
[420037455,1775627461533,-507.0,0.00022363,10]
[420037456,1775627461543,-6022.0,0.00023749,2]
[420037457,1775627461553,-6022.0,0.00026749,2]
[420037458,1775627461563,-1500.0,0.000274,120]
[420037459,1775627461573,-1500.0,0.000274,120]
[420037460,1775627461583,-1500.0,0.000274,120]
[420037461,1775627461593,-1500.0,0.000274,120]
[420037462,1775627461603,-1500.0,0.000274,120]
[420037463,1775627461613,-1500.0,0.000274,120]
[420037464,1775627461623,-101226.62762979,0.000275,2]
[420037465,1775627468020,500.0,0.00010611,2]
[420037466,1775627468075,476.93833039,0.00010611,2]
[420037467,1775627468424,500.0,0.00010611,2]
[420037468,1775627486103,528.50933521,0.00010611,2]
[420037469,1775627486164,528.50933521,0.00010611,2]
[420037470,1775627486212,528.50933521,0.00010611,2]
[420037471,1775627486247,528.50933521,0.00010611,2]
[420037472,1775627486281,528.50933521,0.00010611,2]
[420037473,1775627486314,528.50933521,0.00010611,2]
[420037474,1775627486351,528.50933521,0.00010611,2]
[420037475,1775627486383,528.50933521,0.00010611,2]
[420037476,1775627486416,528.50933521,0.00010611,2]
[420037477,1775627486449,528.50933521,0.00010611,2]
[420037478,1775627486482,528.50933521,0.00010611,2]
[420037479,1775627486519,528.50933521,0.00010611,2]
[420037480,1775627486551,528.50933521,0.00010611,2]
[420037481,1775627486587,528.50933521,0.00010611,2]
[420037482,1775627486622,528.50933521,0.00010611,2]
[420037483,1775627486688,528.50933521,0.00010611,2]
[420037484,1775627486724,528.50933521,0.00010611,2]
[420037485,1775627486759,528.50933521,0.00010611,2]
[420037486,1775627486794,486.84196622,0.00010611,2]
[420037487,1775627486822,41.66736899,0.00010611,2]
[420037488,1775627486859,528.50933521,0.00010611,2]
[420037489,1775627486897,528.50933521,0.00010611,2]
[420037490,1775627487289,528.50933521,0.00010611,2]
[420037491,1775627487324,528.50933521,0.00010611,2]
[420037492,1775627487358,528.50933521,0.00010611,2]
[420037493,1775627487390,528.50933521,0.00010611,2]
[420037494,1775627487431,528.50933521,0.00010611,2]
[420037495,1775627487489,528.50933521,0.00010611,2]
[420037496,1775627487543,528.50933521,0.00010611,2]
[420037497,1775627487577,528.50933521,0.00010611,2]
[420037498,1775627487612,528.50933521,0.00010611,2]
[420037499,1775627487656,528.50933521,0.00010611,2]
[420037500,1775627487689,528.50933521,0.00010611,2]
[420037501,1775627487723,528.50933521,0.00010611,2]
[420037502,1775627487754,528.50933521,0.00010611,2]
[420037503,1775627487792,528.50933521,0.00010611,2]
[420037504,1775627487830,528.50933521,0.00010611,2]
[420037505,1775627487863,528.50933521,0.00010611,2]
[420037506,1775627487909,445.17459723,0.00010611,2]
[420037507,1775627487937,83.33473798,0.00010611,2]
[420037508,1775627487976,528.50933521,0.00010611,2]
[420037509,1775627488017,528.50933521,0.00010611,2]
[420037510,1775627488062,528.50933521,0.00010611,2]
[420037511,1775627488096,528.50933521,0.00010611,2]
[420037512,1775627488128,528.50933521,0.00010611,2]
[420037513,1775627488162,528.50933521,0.00010611,2]
[420037514,1775627488205,528.50933521,0.00010611,2]
[420037515,1775627488243,528.50933521,0.00010611,2]
[420037516,1775627488283,528.50933521,0.00010611,2]
[420037517,1775627488317,528.50933521,0.00010611,2]
[420037518,1775627488361,528.50933521,0.00010611,2]
[420037519,1775627488424,528.50933521,0.00010611,2]
[420037520,1775627488468,528.50933521,0.00010611,2]
[420037521,1775627488518,528.50933521,0.00010611,2]
[420037522,1775627495794,2517.54456908,0.00010609,2]
[420037523,1775627495820,10000.01,0.00010609,2]
[420037524,1775627495846,10000.01,0.00010609,2]
[420037525,1775627495872,10000.01,0.00010609,2]
[420037526,1775627495897,10000.01,0.00010609,2]
[420037527,1775627495922,10000.01,0.00010609,2]
[420037528,1775627495947,10000.01,0.00010609,2]
[420037529,1775627495972,10000.01,0.00010609,2]
[420037530,1775627495997,10000.01,0.00010609,2]
[420037531,1775627496023,10000.01,0.00010609,2]
[420037532,1775627496048,5000.01,0.00010609,2]
[420037533,1775627502765,-5000.01,0.00010609,2]
[420037534,1775627504624,-5000.01,0.00010609,2]
[420037535,1775627507219,-5000.01,0.00010609,2]
[420037536,1775627510363,-5000.01,0.00010609,2]
[420037537,1775627510409,10000.01,0.00010509,2]
[420037538,1775627510435,654.1583077,0.00010509,2]
[420037539,1775627513957,-5000.01,0.00010609,2]
[420037540,1775627516451,-5000.01,0.00010609,2]
[420037541,1775627519339,-5000.01,0.00010609,2]
[420037542,1775627521153,300.0,0.00010608,2]
[420037543,1775627522519,-5000.01,0.00010609,2]
[420037544,1775627525685,-5000.01,0.00010609,2]
[420037545,1775627528563,-5000.01,0.00010609,2]
[420037546,1775627531487,-5000.01,0.00010609,2]
[420037547,1775627534681,-5000.01,0.00010609,2]
[420037548,1775627536435,151.0,0.00010606,2]
[420037549,1775627537516,-5000.01,0.00010609,2]
[420037550,1775627540697,-5000.01,0.00010609,2]
[420037551,1775627543579,-5000.01,0.00010609,2]
[420037552,1775627548674,-5000.01,0.00010609,2]
[420037553,1775627549622,-5000.01,0.00010609,2]
[420037554,1775627552820,-5000.01,0.00010609,2]
[420037555,1775627555741,-5000.01,0.00010609,2]
[420037556,1775627559471,-5000.01,0.00010609,2]
[420037557,1775627561294,518.29758616,0.00010608,2]
[420037558,1775627561356,500.0,0.00010608,2]
[420037559,1775627561429,533.85683127,0.00010608,2]
[420037560,1775627562728,-5000.01,0.00010609,2]
[420037561,1775627564675,500.0,0.00010608,2]
[420037562,1775627564728,500.0,0.00010608,2]
[420037563,1775627564769,500.0,0.00010608,2]
[420037564,1775627564816,500.0,0.00010608,2]
[420037565,1775627565077,500.0,0.00010608,2]
[420037566,1775627565130,500.0,0.00010608,2]
[420037567,1775627565226,500.0,0.00010608,2]
[420037568,1775627565271,500.0,0.00010608,2]
[420037569,1775627565339,500.0,0.00010608,2]
[420037570,1775627565376,500.0,0.00010608,2]
[420037571,1775627565418,500.0,0.00010608,2]
[420037572,1775627565459,500.0,0.00010608,2]
[420037573,1775627565502,500.0,0.00010608,2]
[420037574,1775627565546,500.0,0.00010608,2]
[420037575,1775627565596,342.69727487,0.00010608,2]
[420037576,1775627565625,157.30272513,0.00010608,2]
[420037577,1775627565664,500.0,0.00010608,2]
[420037578,1775627565679,-5000.01,0.00010609,2]
[420037579,1775627565745,500.0,0.00010608,2]
[420037580,1775627565788,500.0,0.00010608,2]
[420037581,1775627565831,500.0,0.00010608,2]
[420037582,1775627565879,500.0,0.00010608,2]
[420037583,1775627565933,500.0,0.00010608,2]
[420037584,1775627565995,500.0,0.00010608,2]
[420037585,1775627566049,500.0,0.00010608,2]
[420037586,1775627566098,500.0,0.00010608,2]
[420037587,1775627566140,500.0,0.00010608,2]
[420037588,1775627566182,500.0,0.00010608,2]
[420037589,1775627566232,500.0,0.00010608,2]
[420037590,1775627566300,500.0,0.00010608,2]
[420037591,1775627566344,500.0,0.00010608,2]
[420037592,1775627566387,500.0,0.00010608,2]
[420037593,1775627566431,500.0,0.00010608,2]
[420037594,1775627566477,500.0,0.00010608,2]
[420037595,1775627570936,-5000.01,0.00010609,2]
[420037596,1775627579438,222.49353873,0.0001,2]
[420037598,1775627581663,300.0,0.00010608,2]
[420037599,1775627593206,500.0,0.00010608,2]
[420037600,1775627593244,320.21373614,0.00010608,2]
[420037601,1775627593278,179.78626386,0.00010608,2]
[420037602,1775627593329,500.0,0.00010608,2]
[420037603,1775627593369,500.0,0.00010608,2]
[420037604,1775627593412,500.0,0.00010608,2]
[420037605,1775627593459,500.0,0.00010608,2]
[420037606,1775627593503,500.0,0.00010608,2]
[420037607,1775627593554,500.0,0.00010608,2]
[420037608,1775627593591,500.0,0.00010608,2]
[420037609,1775627593629,500.0,0.00010608,2]
[420037610,1775627593679,515.14163581,0.00010608,2]
[420037611,1775627593719,500.0,0.00010608,2]
[420037612,1775627593765,500.0,0.00010608,2]
[420037613,1775627593812,500.0,0.00010608,2]
[420037614,1775627593855,500.0,0.00010608,2]
[420037615,1775627593903,500.0,0.00010608,2]
[420037616,1775627594009,500.0,0.00010608,2]
[420037617,1775627594085,500.0,0.00010608,2]
[420037618,1775627605144,304.0,0.00010609,2]
[420037619,1775627611255,1501.08210033,0.0001051,2]
[420037620,1775627611281,5085.85538113,0.0001051,2]
[420037621,1775627640489,761.7257084,0.0001051,2]
[420037622,1775627641448,150.0,0.00010608,2]
[420037623,1775627641850,300.0,0.00010608,2]
[420037624,1775627641907,1200.0,0.00010608,2]
[420037625,1775627643492,669.52959124,0.0001051,2]
[420037627,1775627650684,10000.01,0.000106,2]
[420037628,1775627650709,188.9,0.000106,2]
[420037631,1775627678435,500.0,0.00010608,2]
[420037632,1775627678494,500.0,0.00010608,2]
[420037633,1775627678584,503.19656755,0.00010608,2]
[420037634,1775627678677,500.0,0.00010608,2]
[420037635,1775627678724,500.0,0.00010608,2]
[420037638,1775627687240,232.17019528,0.00010608,2]
[420037641,1775627698590,500.0,0.00010608,2]
[420037642,1775627698697,443.22055388,0.00010608,2]
[420037643,1775627701087,300.0,0.00010608,2]
[420037644,1775627701117,300.0,0.00010608,2]
[420037645,1775627701147,254.0,0.00010608,2]
[420037646,1775627701177,1200.0,0.00010608,2]
[420037649,1775627707279,625.23520736,0.0001051,2]
[420037650,1775627709531,500.0,0.00010608,2]
[420037651,1775627716128,442.21605325,0.00010608,2]
[420037653,1775627716715,500.0,0.00010608,2]
[420037655,1775627717447,500.0,0.00010608,2]
[420037656,1775627718818,500.0,0.00010608,2]
[420037658,1775627720172,500.0,0.00010608,2]
[420037663,1775627727660,500.0,0.00010608,2]
[420037664,1775627727691,11.07142268,0.00010608,2]
[420037665,1775627727715,488.92857732,0.00010608,2]
[420037666,1775627789466,279.33835614,0.0001,2]
[420037667,1775627811481,593.85596379,0.00010509,2]
[420037668,1775627819442,349.1207205,0.0001,2]
[420037669,1775627962863,179.0,6.805e-05,2]
[420037670,1775627963116,177.0,6.805e-05,2]
[420037671,1775627963369,177.0,6.805e-05,2]
[420037672,1775627963617,177.0,6.805e-05,2]
[420037673,1775627966020,254.0,6.805e-05,2]
[420037675,1775627988772,7813.69495957,0.00010075,2]
[420037676,1775627988799,794.42504043,0.00010075,2]
[420037677,1775627991418,1542.28,0.00010099,2]
[420037678,1775627994342,-300.0,0.00010607,2]
[420037679,1775627994373,-1200.0,0.00010607,2]
[420037680,1775627994403,-250.0,0.00010607,2]
[420037681,1775627994434,-1798.8734331,0.00010608,2]
[420037682,1775627994465,-250.0,0.00010608,2]
[420037683,1775627994495,-300.0,0.00010608,2]
[420037684,1775627994526,-150.0,0.00010608,2]
[420037685,1775627994556,-300.0,0.00010608,2]
[420037686,1775627994586,-402.2631338,0.00010608,2]
[420037689,1775628016156,4968.32,0.00010075,2]
[420037691,1775628019817,2500.0,0.00010509,2]
[420037693,1775628030839,507.81713894,0.00010509,2]
[420037698,1775628060118,383.71858389,0.0001,2]
[420037699,1775628070465,1500.0,0.00010075,2]
[420037700,1775628076712,8116.29141611,0.00010545,2]
[420037701,1775628076737,183.69858389,0.00010545,2]
[420037703,1775628091482,3826.437556,0.00010522,2]
[420037704,1775628102608,350.7904,0.00010509,2]
[420037711,1775628125134,1518.06,5.037e-05,2]
[420037712,1775628125264,1518.06,5.303e-05,2]
[420037713,1775628125504,1518.06,5.568e-05,2]
[420037714,1775628125563,1518.06,5.833e-05,2]
[420037715,1775628125617,1518.06,6.098e-05,2]
[420037716,1775628125655,1518.06,6.363e-05,2]
[420037717,1775628125778,891.65,6.628e-05,2]
[420037718,1775628125804,626.41,6.628e-05,2]
[420037719,1775628126068,1518.06,6.893e-05,2]
[420037720,1775628126259,1518.06,7.158e-05,2]
[420037721,1775628126458,1518.06,7.424e-05,2]
[420037722,1775628126963,1518.06,7.689e-05,2]
[420037723,1775628127015,1518.06,7.954e-05,2]
[420037724,1775628127070,1518.06,8.219e-05,2]
[420037725,1775628127264,265.24,8.484e-05,2]
[420037726,1775628127289,1252.82,8.484e-05,2]
[420037727,1775628127474,1518.06,8.749e-05,2]
[420037728,1775628143586,1518.06,9.014e-05,2]
[420037729,1775628143795,1518.06,9.279e-05,2]
[420037730,1775628144000,1518.06,9.545e-05,2]
[420037731,1775628144207,1518.06,9.81e-05,2]
[420037732,1775628144397,1156.89,0.00010075,2]
[420037733,1775628144423,361.17,0.00010075,2]
[420037734,1775628163429,303.0,0.00010575,2]
[420037735,1775628284752,159.94,0.00010575,2]
[420037736,1775628334405,419.53,0.00010049,2]
[420037737,1775628359247,10000.01,9.776e-05,2]
[420037738,1775628365995,-2250.45,9.776e-05,2]
[420037739,1775628385320,400.0,9.925e-05,2]
[420037746,1775628437690,200.0,9.675e-05,2]
[420037747,1775628461487,179.092875,0.00010142,2]
[420037749,1775628576706,-5000.0,0.00010176,2]
[420037750,1775628576967,-5000.0,0.00010427,2]
[420037751,1775628577089,-300.0,0.00010508,2]
[420037752,1775628577122,-338.54475928,0.00010509,2]
[420037753,1775628577153,-153.43410661,0.00010509,2]
[420037754,1775628577184,-150.0,0.00010575,2]
[420037755,1775628577215,-3464.0,0.00010575,2]
[420037756,1775628577246,-150.0,0.00010576,2]
[420037757,1775628577278,-150.0,0.00010576,2]
[420037758,1775628577309,-150.0,0.00010576,2]
[420037759,1775628577339,-138.05226822,0.00010576,2]
[420037760,1775628577537,-11.94773178,0.00010576,2]
[420037761,1775628577567,-150.0,0.00010576,2]
[420037762,1775628577597,-250.0,0.00010576,2]
[420037763,1775628577628,-150.0,0.00010576,2]
[420037764,1775628577658,-150.0,0.00010576,2]
[420037765,1775628577689,-150.0,0.00010576,2]
[420037766,1775628577719,-150.0,0.00010576,2]
[420037767,1775628577750,-150.0,0.00010576,2]
[420037768,1775628577780,-250.0,0.00010576,2]
[420037769,1775628577810,-150.0,0.00010576,2]
[420037770,1775628577841,-150.0,0.00010576,2]
[420037771,1775628577872,-150.0,0.00010576,2]
[420037772,1775628577904,-150.0,0.00010576,2]
[420037773,1775628577935,-500.0,0.00010576,2]
[420037774,1775628577966,-150.0,0.00010576,2]
[420037775,1775628577997,-500.0,0.00010576,2]
[420037776,1775628578027,-150.0,0.00010576,2]
[420037777,1775628578057,-247.33546096,0.00010576,2]
[420037778,1775628578087,-500.0,0.00010576,2]
[420037779,1775628578119,-500.0,0.00010576,2]
[420037780,1775628578152,-381.44361452,0.00010576,2]